bitfinex/quotes_BTCUSD_20250711
["timestamp","ask_amount","ask_price","bid_price","bid_amount"]
[1752256186846,0.8918903,117470.0,117460.0,0.60668]
[1752256187056,0.90248814,117470.0,117460.0,0.60668]
[1752256187512,0.88858814,117470.0,117460.0,0.60668]
[1752256187730,0.84668939,117470.0,117460.0,0.6432]
[1752256188024,0.88858814,117470.0,117460.0,0.63798]
[1752256188247,0.88858814,117470.0,117460.0,0.60668]
[1752256189153,0.90248814,117470.0,117460.0,0.60668]
[1752256189834,0.90370814,117470.0,117460.0,0.60668]
[1752256190069,0.91500814,117470.0,117460.0,0.60668]
[1752256194474,0.90370814,117470.0,117460.0,0.60668]
[1752256196697,0.90248814,117470.0,117460.0,0.60668]
[1752256196894,0.88858814,117470.0,117460.0,0.60668]
[1752256201787,0.88858814,117470.0,117460.0,0.6431]
[1752256202591,0.39853941,117470.0,117460.0,0.6431]
[1752256202842,0.88663814,117470.0,117460.0,0.6431]
[1752256203502,0.00408491,117470.0,117460.0,0.72852993]
[1752256203910,0.04399856,117470.0,117460.0,0.72852993]
[1752256204344,0.05853941,117470.0,117460.0,0.72852993]
[1752256204874,0.04399856,117470.0,117460.0,0.72852993]
[1752256205160,0.05853941,117470.0,117460.0,0.72852993]
[1752256206377,0.05390275,117470.0,117460.0,0.72852993]
[1752256210826,0.54413251,117470.0,117460.0,0.72852993]
[1752256211056,0.54200148,117470.0,117460.0,0.72852993]
[1752256216465,0.0139891,117470.0,117460.0,0.72852993]
[1752256216670,0.05390275,117470.0,117460.0,0.72852993]
[1752256217365,0.0139891,117470.0,117460.0,0.90731412]
[1752256217573,0.05390275,117470.0,117460.0,0.72852993]
[1752256218423,0.50010273,117470.0,117460.0,0.72852993]
[1752256218624,0.05390275,117470.0,117460.0,0.72852993]
[1752256220734,0.50010273,117470.0,117460.0,0.72852993]
[1752256221557,0.46018908,117470.0,117460.0,0.72852993]
[1752256221775,0.50010273,117470.0,117460.0,0.72852993]
[1752256223799,0.0139891,117470.0,117460.0,0.72852993]
[1752256224004,0.05390275,117470.0,117460.0,0.72852993]
[1752256224343,0.0139891,117470.0,117460.0,1.3535141]
[1752256224551,0.0139891,117470.0,117460.0,1.17472991]
[1752256224751,0.05390275,117470.0,117460.0,0.72852993]
[1752256225106,0.05390275,117470.0,117460.0,0.73704346]
[1752256225313,0.05390275,117470.0,117460.0,0.74555692]
[1752256225513,0.05390275,117470.0,117460.0,0.73704346]
[1752256225695,0.0139891,117470.0,117460.0,0.74555692]
[1752256225936,0.05390275,117470.0,117460.0,0.73904346]
[1752256226543,0.05390275,117470.0,117460.0,0.74755692]
[1752256226742,0.05390275,117470.0,117460.0,0.72052993]
[1752256227139,0.50010273,117470.0,117460.0,0.72152993]
[1752256227367,0.50010273,117470.0,117460.0,0.33644]
[1752256227368,1.61957146,117470.0,117460.0,0.33644]
[1752256227573,1.70500139,117470.0,117460.0,0.31244]
[1752256227776,1.73053539,117470.0,117460.0,0.31244]
[1752256228293,1.28433541,117470.0,117460.0,0.30944]
[1752256228883,1.27407875,117470.0,117460.0,0.30944]
[1752256229082,1.27807875,117470.0,117460.0,0.30944]
[1752256229830,1.01507875,117470.0,117460.0,0.30944]
[1752256230045,1.14659875,117470.0,117460.0,0.30944]
[1752256230979,1.14959875,117470.0,117460.0,0.30944]
[1752256236132,1.15811098,117470.0,117460.0,0.30944]
[1752256236342,1.59405422,117470.0,117460.0,0.30944]
[1752256236753,1.61959162,117470.0,117460.0,0.30093231]
[1752256236960,1.59405422,117470.0,117460.0,0.29242462]
[1752256237377,1.45402207,117470.0,117460.0,0.28391693]
[1752256237586,1.14959875,117470.0,117460.0,0.28391693]
[1752256237828,1.14959875,117470.0,117460.0,0.27540924]
[1752256238180,1.14959875,117470.0,117460.0,0.26690155]
[1752256238492,1.15811098,117470.0,117460.0,0.26690155]
[1752256238706,1.16662335,117470.0,117460.0,0.25839386]
[1752256239114,1.16662335,117470.0,117460.0,0.24988617]
[1752256239320,1.78984858,117470.0,117460.0,0.24988617]
[1752256239523,0.62366662,117450.0,117440.0,0.002]
[1752256239756,1.13346422,117450.0,117440.0,0.002]
[1752256239962,1.13346422,117450.0,117420.0,0.002]
[1752256239963,0.01454085,117430.0,117420.0,0.002]
[1752256240176,0.62603885,117430.0,117420.0,0.002]
[1752256240432,0.62390782,117430.0,117420.0,0.002]
[1752256240642,0.51788882,117430.0,117420.0,0.002]
[1752256240878,0.64944882,117430.0,117420.0,0.002]
[1752256241157,0.51788882,117430.0,117420.0,0.002]
[1752256241375,0.80892782,117430.0,117420.0,0.00208491]
[1752256241577,0.80892782,117430.0,117400.0,0.002]
[1752256241578,0.09635325,117410.0,117400.0,0.002]
[1752256241762,1.18939085,117410.0,117400.0,0.00249874]
[1752256242001,0.7525365,117410.0,117400.0,0.00249874]
[1752256243045,1.18847982,117410.0,117400.0,0.00249874]
[1752256243263,1.57071304,117410.0,117400.0,0.00249874]
[1752256243665,1.59694468,117410.0,117400.0,0.00249874]
[1752256244254,1.56971304,117410.0,117400.0,0.00249874]
[1752256244599,1.55267982,117410.0,117400.0,0.00249874]
[1752256244816,1.42103982,117410.0,117400.0,0.00249874]
[1752256245014,1.0915365,117410.0,117400.0,0.00249874]
[1752256245928,0.9586765,117410.0,117400.0,0.00249874]
[1752256246162,1.0903165,117410.0,117400.0,0.00249874]
[1752256247038,1.1075165,117410.0,117400.0,0.00249874]
[1752256248139,1.1105165,117410.0,117400.0,0.00249874]
[1752256249401,1.13415308,117410.0,117400.0,0.00249874]
[1752256249609,1.1369365,117410.0,117400.0,0.00249874]
[1752256249955,1.57287982,117410.0,117400.0,0.00249874]
[1752256250367,1.58139632,117410.0,117400.0,0.00249874]
[1752256250566,1.57287982,117410.0,117400.0,0.00249874]
[1752256251374,1.5813964,117410.0,117400.0,0.00249874]
[1752256251548,1.5899129,117410.0,117400.0,0.00249874]
[1752256251793,1.57287982,117410.0,117400.0,0.00249874]
[1752256252478,1.1369365,117410.0,117400.0,0.00249874]
[1752256252680,1.145453,117410.0,117400.0,0.00249874]
[1752256252893,1.1369365,117410.0,117400.0,0.00249874]
[1752256253313,1.0052965,117410.0,117400.0,0.00249874]
[1752256253516,1.58135647,117410.0,117400.0,0.00249874]
[1752256253728,1.58987326,117410.0,117400.0,0.00249874]
[1752256253938,1.57283982,117410.0,117400.0,0.00249874]
[1752256254263,1.1368965,117410.0,117400.0,0.00249874]
[1752256254513,1.58135632,117410.0,117400.0,0.00249874]
[1752256254719,1.57283982,117410.0,117400.0,0.00249874]
[1752256254937,1.1368965,117410.0,117400.0,0.00249874]
[1752256255779,1.0052965,117410.0,117400.0,0.00249874]
[1752256255991,1.1368965,117410.0,117400.0,0.00249874]
[1752256256565,1.1255965,117410.0,117400.0,0.00249874]
[1752256257222,1.1116965,117410.0,117400.0,0.00249874]
[1752256259582,1.13724681,117410.0,117400.0,0.00249874]
[1752256259809,1.14262987,117410.0,117400.0,0.00249874]
[1752256260015,1.13411308,117410.0,117400.0,0.00249874]
[1752256260216,1.1426298,117410.0,117400.0,0.00249874]
[1752256260417,0.09535325,117390.0,117380.0,0.002]
[1752256260622,1.10731263,117390.0,117380.0,0.002]
[1752256260869,1.3211416,117390.0,117380.0,0.002]
[1752256260999,1.3421416,117390.0,117380.0,0.002]
[1752256261202,0.09535325,117370.0,117360.0,0.002]
[1752256261412,1.09240753,117370.0,117360.0,0.002]
[1752256261700,1.0902765,117370.0,117360.0,0.002]
[1752256262355,1.02664657,117370.0,117360.0,0.0335]
[1752256262570,1.02664657,117370.0,117360.0,0.03678495]
[1752256263575,1.02864657,117370.0,117360.0,0.03678495]
[1752256263784,1.02864657,117370.0,117360.0,0.03358495]
[1752256264486,0.90382838,117370.0,117360.0,0.03358495]
[1752256264708,0.08959421,117370.0,117360.0,0.03877495]
[1752256264936,0.22119421,117370.0,117360.0,0.03877495]
[1752256265179,0.08959421,117370.0,117360.0,0.03877495]
[1752256265391,0.04769546,117370.0,117360.0,0.12420488]
[1752256265596,0.002,117370.0,117360.0,0.57079918]
[1752256265800,0.03891365,117370.0,117360.0,0.56866899]
[1752256266006,0.03891365,117370.0,117360.0,0.32048254]
[1752256266217,0.0808124,117380.0,117370.0,0.0318]
[1752256266374,0.0808124,117380.0,117370.0,0.12241993]
[1752256266793,0.09535325,117380.0,117370.0,0.12241993]
[1752256267000,0.03891365,117380.0,117370.0,0.12241993]
[1752256267222,0.21896856,117390.0,117380.0,0.031]
[1752256267426,0.21896856,117390.0,117380.0,0.12261993]
[1752256267629,0.08732856,117390.0,117380.0,0.12261993]
[1752256267877,0.10186941,117390.0,117380.0,0.12161993]
[1752256268433,0.10400044,117390.0,117380.0,0.12161993]
[1752256269013,0.10400044,117390.0,117380.0,0.12261993]
[1752256269847,0.10186941,117390.0,117380.0,0.12261993]
[1752256270451,0.10400044,117390.0,117380.0,0.12261993]
[1752256271724,0.06210169,117390.0,117380.0,0.12261993]
[1752256271928,0.02105701,117390.0,117380.0,0.12261993]
[1752256272129,0.05997066,117390.0,117380.0,0.12261993]
[1752256272540,0.03891365,117390.0,117380.0,0.55856325]
[1752256272713,0.03891365,117390.0,117380.0,0.57186972]
[1752256272910,0.03891365,117390.0,117380.0,0.1359264]
[1752256273139,0.03891365,117390.0,117380.0,0.13805623]
[1752256273547,0.03891365,117390.0,117380.0,0.1359264]
[1752256273759,0.09748428,117390.0,117380.0,0.1359264]
[1752256274167,0.10418333,117390.0,117380.0,0.1359264]
[1752256274813,0.10418333,117390.0,117380.0,0.1389264]
[1752256275394,0.10418333,117390.0,117380.0,0.12461993]
[1752256275730,0.10418333,117390.0,117380.0,0.12661993]
[1752256276930,0.03891365,117390.0,117380.0,0.12661993]
[1752256280251,0.09535325,117390.0,117380.0,0.12661993]
[1752256283719,0.87324657,117390.0,117380.0,0.0392]
[1752256283922,0.87324657,117390.0,117380.0,0.0209]
[1752256284152,0.87324657,117390.0,117380.0,0.005]
[1752256284879,0.87446657,117390.0,117380.0,0.002]
[1752256285232,0.87324657,117390.0,117380.0,0.003]
[1752256285820,0.87324657,117390.0,117380.0,0.002]
[1752256286222,0.35454085,117380.0,117360.0,0.03624495]
[1752256286427,0.17264468,117370.0,117360.0,0.11861488]
[1752256286626,0.17051365,117370.0,117360.0,0.11861488]
[1752256286844,0.17051365,117370.0,117360.0,0.12069488]
[1752256287046,0.17051365,117370.0,117360.0,0.12375488]
[1752256287426,0.0534545,117370.0,117360.0,0.12375488]
[1752256287646,0.09535325,117370.0,117360.0,0.12675488]
[1752256287848,0.0534545,117370.0,117360.0,0.12675488]
[1752256288283,0.09535325,117370.0,117360.0,0.12675488]
[1752256288484,0.0534545,117370.0,117360.0,0.12875488]
[1752256288701,0.09535325,117370.0,117360.0,0.12875488]
[1752256289115,0.0534545,117370.0,117360.0,0.12675488]
[1752256289321,0.0534545,117370.0,117360.0,0.13088507]
[1752256289927,0.03891365,117370.0,117360.0,0.7372442]
[1752256290222,0.22695325,117390.0,117380.0,0.0322]
[1752256290459,0.4208124,117390.0,117380.0,0.11970993]
[1752256290634,0.4208124,117390.0,117380.0,0.12276993]
[1752256290832,0.43535325,117390.0,117380.0,0.12276993]
[1752256291813,0.09535325,117390.0,117380.0,0.12276993]
[1752256292028,0.22695325,117390.0,117380.0,0.12276993]
[1752256292233,0.09535325,117390.0,117380.0,0.12276993]
[1752256292432,0.55916045,117400.0,117390.0,0.0321]
[1752256292670,0.55916045,117400.0,117390.0,0.12266993]
[1752256293109,0.5737013,117400.0,117390.0,0.12266993]
[1752256293528,0.0456617,117400.0,117390.0,0.12266993]
[1752256293736,0.2144124,117410.0,117400.0,0.0321]
[1752256293950,0.43735325,117410.0,117400.0,0.11960993]
[1752256294159,0.43735325,117410.0,117400.0,0.12266993]
[1752256294554,0.3984396,117410.0,117400.0,0.12266993]
[1752256294763,0.43735325,117410.0,117400.0,0.12266993]
[1752256294969,0.36354305,117410.0,117400.0,0.12266993]
[1752256295171,0.00249807,117410.0,117400.0,0.55861325]
[1752256295370,0.04141172,117410.0,117400.0,0.55861325]
[1752256295713,0.00249807,117410.0,117400.0,0.55861325]
[1752256295939,0.04141172,117410.0,117400.0,0.12266993]
[1752256296755,0.04141172,117410.0,117400.0,0.12466993]
[1752256298847,0.04141172,117410.0,117400.0,0.12766993]
[1752256299639,0.04141172,117410.0,117400.0,0.1297994]
[1752256299871,0.04141172,117410.0,117400.0,0.73610047]
[1752256300074,0.04141172,117410.0,117400.0,0.75952385]
[1752256300372,0.04141172,117410.0,117400.0,0.7510064]
[1752256300729,0.04141172,117410.0,117400.0,0.56361325]
[1752256300934,0.04141172,117410.0,117400.0,0.58064894]
[1752256301201,0.04141172,117410.0,117400.0,0.75100669]
[1752256301436,0.04141172,117410.0,117400.0,0.75952443]
[1752256301555,0.04141172,117410.0,117400.0,0.76804202]
[1752256301804,0.00249807,117410.0,117400.0,0.77655939]
[1752256302016,0.04141172,117410.0,117400.0,0.77655939]
[1752256303065,0.04141172,117410.0,117400.0,0.77655947]
[1752256303513,0.04141172,117410.0,117400.0,0.77655896]
[1752256303724,0.04141172,117410.0,117400.0,0.76804166]
[1752256304031,0.04141172,117410.0,117400.0,0.77655911]
[1752256304163,0.04141172,117410.0,117400.0,0.76804166]
[1752256304767,0.04141172,117410.0,117400.0,0.92467166]
[1752256305211,0.04141172,117410.0,117400.0,0.93318867]
[1752256305420,0.04141172,117410.0,117400.0,0.9246713]
[1752256305618,0.04141172,117410.0,117400.0,0.93318867]
[1752256306052,0.04141172,117410.0,117400.0,0.9246713]
[1752256306193,0.00249807,117410.0,117400.0,0.9246713]
[1752256306406,0.04141172,117410.0,117400.0,0.9246713]
[1752256306804,0.04141172,117410.0,117400.0,0.93318867]
[1752256307363,0.04141172,117410.0,117400.0,0.49724535]
[1752256307497,0.04141172,117410.0,117400.0,0.9246713]
[1752256307696,0.04141172,117410.0,117400.0,0.90763633]
[1752256307951,0.04141172,117410.0,117400.0,0.9246713]
[1752256308110,0.04141172,117410.0,117400.0,0.93318867]
[1752256308306,0.04141172,117410.0,117400.0,0.9246713]
[1752256308511,0.00249807,117410.0,117400.0,0.9246713]
[1752256308745,0.00249807,117410.0,117400.0,0.93318867]
[1752256309356,0.04141172,117410.0,117400.0,0.9246713]
[1752256309731,0.04141172,117410.0,117400.0,0.93318867]
[1752256311389,0.00249807,117410.0,117400.0,0.93318867]
[1752256311589,0.04141172,117410.0,117400.0,0.93318867]
[1752256312180,0.04141172,117410.0,117400.0,0.9246713]
[1752256312561,0.04141172,117410.0,117400.0,0.93318867]
[1752256314722,0.04141172,117410.0,117400.0,0.9246713]
[1752256315116,0.04141172,117410.0,117400.0,0.93318867]
[1752256321016,0.04141172,117410.0,117400.0,0.94355044]
[1752256321711,0.00249807,117410.0,117400.0,1.38985553]
[1752256321956,0.03309682,117440.0,117420.0,0.18735962]
[1752256322170,0.07324879,117440.0,117430.0,0.83155502]
[1752256322601,0.07324879,117440.0,117430.0,0.98814502]
[1752256323321,0.07324879,117440.0,117430.0,0.54183993]
[1752256323693,0.07324879,117440.0,117430.0,0.54383993]
[1752256324569,0.07324879,117440.0,117430.0,0.99014502]
[1752256325728,0.0534545,117440.0,117430.0,0.99014502]
[1752256325946,0.3687478,117450.0,117430.0,0.99014502]
[1752256326160,0.4222023,117450.0,117440.0,0.0327]
[1752256326276,0.4241523,117450.0,117440.0,0.12120993]
[1752256327089,0.4251523,117450.0,117440.0,0.12120993]
[1752256327286,0.4261523,117450.0,117440.0,0.12120993]
[1752256327529,0.4251523,117450.0,117440.0,0.12120993]
[1752256328142,0.38623865,117450.0,117440.0,0.12120993]
[1752256328309,0.4251523,117450.0,117440.0,0.12120993]
[1752256328523,0.4241523,117450.0,117440.0,0.12334993]
[1752256328857,0.4242023,117450.0,117440.0,0.12334993]
[1752256329084,0.4261523,117450.0,117440.0,0.12334993]
[1752256329475,0.4251523,117450.0,117440.0,0.12334993]
[1752256329707,0.4241523,117450.0,117440.0,0.12334993]
[1752256331588,0.38523865,117450.0,117440.0,0.12334993]
[1752256331799,0.4241523,117450.0,117440.0,0.12334993]
[1752256335420,0.4241523,117450.0,117440.0,0.11812993]
[1752256336091,0.87045739,117450.0,117440.0,0.08542993]
[1752256337040,0.4241523,117450.0,117440.0,0.08542993]
[1752256337299,0.87045739,117450.0,117440.0,0.08542993]
[1752256337449,0.08714879,117440.0,117430.0,0.15659]
[1752256337665,0.89005491,117440.0,117430.0,0.15659]
[1752256337903,0.88792388,117440.0,117430.0,0.15659]
[1752256338283,0.87462388,117440.0,117430.0,0.15659]
[1752256339132,0.87462388,117440.0,117430.0,0.15759]
[1752256339278,0.99094388,117440.0,117430.0,0.15759]
[1752256339504,0.54463879,117440.0,117430.0,0.18909]
[1752256339717,0.3934045,117440.0,117430.0,0.19214]
[1752256339914,0.41319879,117440.0,117430.0,0.27756993]
[1752256340113,0.54463879,117440.0,117430.0,0.27756993]
[1752256341109,0.41319879,117440.0,117430.0,0.27971993]
[1752256341321,0.54463879,117440.0,117430.0,0.27971993]
[1752256341524,0.0514545,117440.0,117430.0,0.27971993]
[1752256341736,0.0514545,117440.0,117430.0,0.54259993]
[1752256342512,0.01254085,117440.0,117430.0,0.54259993]
[1752256343043,0.0514545,117440.0,117430.0,0.54259993]
[1752256343173,0.01254085,117440.0,117430.0,0.54259993]
[1752256343562,0.0514545,117440.0,117430.0,0.54259993]
[1752256343772,0.01254085,117440.0,117430.0,0.54259993]
[1752256343976,0.0514545,117440.0,117430.0,0.54259993]
[1752256345910,0.01254085,117440.0,117430.0,0.54259993]
[1752256346116,0.0514545,117440.0,117430.0,0.54259993]
[1752256347506,0.01254085,117440.0,117430.0,0.54259993]
[1752256347725,0.0514545,117440.0,117430.0,0.54259993]
[1752256348918,0.0514545,117440.0,117430.0,0.54459993]
[1752256349298,0.52163491,117440.0,117430.0,0.26031993]
[1752256349433,0.51950388,117440.0,117430.0,0.24501993]
[1752256351630,0.07319879,117440.0,117430.0,0.28036993]
[1752256351866,0.52163491,117440.0,117430.0,0.28036993]
[1752256352139,0.51950388,117440.0,117430.0,0.28036993]
[1752256352354,0.20459879,117440.0,117430.0,0.28036993]
[1752256352581,0.20459879,117440.0,117430.0,0.27731993]
[1752256352812,0.65090388,117440.0,117430.0,0.27731993]
[1752256355398,0.20264879,117440.0,117430.0,0.28251993]
[1752256355830,0.07124879,117440.0,117430.0,0.28251993]
[1752256356062,0.0514545,117440.0,117430.0,0.89913924]
[1752256356305,0.0514545,117440.0,117430.0,0.72882502]
[1752256357212,0.0514545,117440.0,117430.0,0.28251993]
[1752256364850,0.0514545,117440.0,117430.0,0.29103564]
[1752256365385,0.0514545,117440.0,117430.0,0.28251993]
[1752256367760,0.0514545,117440.0,117430.0,0.4783804]
[1752256367926,0.0514545,117440.0,117430.0,0.92468549]
[1752256368123,0.03891365,117440.0,117430.0,0.92468549]
[1752256368873,0.04091365,117450.0,117440.0,0.23655862]
[1752256369084,0.06194935,117460.0,117450.0,0.0322]
[1752256369218,0.06194935,117460.0,117450.0,0.11965993]
[1752256369422,0.06194935,117460.0,117450.0,0.27945993]
[1752256370557,0.06294935,117460.0,117450.0,0.27945993]
[1752256370946,0.06394935,117460.0,117450.0,0.27945993]
[1752256372355,0.06589935,117460.0,117450.0,0.27945993]
[1752256372582,0.51220444,117460.0,117450.0,0.24199993]
[1752256372791,0.52610444,117460.0,117450.0,0.24199993]
[1752256373001,0.5341831,117460.0,117450.0,0.24199993]
[1752256373506,0.5190631,117460.0,117450.0,0.24199993]
[1752256376980,0.6503831,117460.0,117450.0,0.24199993]
[1752256379711,0.20407801,117460.0,117450.0,0.24199993]
[1752256380108,0.6503431,117460.0,117450.0,0.27895993]
[1752256380322,0.6483931,117460.0,117450.0,0.27895993]
[1752256382077,0.6503431,117460.0,117450.0,0.27895993]
[1752256383740,0.20403801,117460.0,117450.0,0.27895993]
[1752256383964,0.6503431,117460.0,117450.0,0.27895993]
[1752256384164,0.5171131,117460.0,117450.0,0.27895993]
[1752256384365,0.6483931,117460.0,117450.0,0.27895993]
[1752256387857,0.20208801,117460.0,117450.0,0.27895993]
[1752256388055,0.07080801,117460.0,117450.0,0.27895993]
[1752256390420,0.07080801,117460.0,117450.0,0.91257846]
[1752256390421,0.04091365,117460.0,117450.0,0.91257846]
[1752256390561,0.002,117460.0,117450.0,0.92960618]
[1752256391399,0.001,117460.0,117450.0,0.95549102]
[1752256392130,0.001,117460.0,117450.0,0.50918593]
[1752256392331,0.001,117460.0,117450.0,1.24699617]
[1752256392574,0.001,117460.0,117450.0,1.24899617]
[1752256392971,0.002,117470.0,117460.0,0.22761045]
[1752256393140,0.002,117470.0,117460.0,1.18363547]
[1752256394147,0.002,117470.0,117460.0,1.18663547]
[1752256394735,0.002,117470.0,117460.0,1.19404976]
[1752256394934,0.002,117470.0,117460.0,1.19504976]
[1752256397159,0.002,117470.0,117460.0,0.74874467]
[1752256397416,0.002,117470.0,117460.0,1.19504976]
[1752256398889,0.002,117470.0,117460.0,0.74133038]
[1752256399334,0.002,117470.0,117460.0,1.18763547]
[1752256401134,0.002,117470.0,117460.0,0.74133038]
[1752256401379,0.002,117470.0,117460.0,1.18763547]
[1752256401627,0.002,117470.0,117460.0,1.52763547]
[1752256401832,0.0024,117490.0,117480.0,0.22637712]
[1752256402048,0.00254949,117490.0,117480.0,1.02258214]
[1752256402252,0.0002,117500.0,117490.0,0.22786046]
[1752256402455,0.0002,117500.0,117490.0,1.31870063]
[1752256402688,0.0022,117510.0,117500.0,0.57724894]
[1752256402900,0.0022,117510.0,117500.0,1.40555396]
[1752256403115,0.0002,117520.0,117510.0,0.67413223]
[1752256403327,0.0002,117520.0,117510.0,0.76163216]
[1752256403539,0.0002,117520.0,117510.0,1.20927243]
[1752256404434,0.0042,117530.0,117520.0,0.19571048]
[1752256404640,0.00469828,117530.0,117520.0,1.0271055]
[1752256404845,0.00469828,117530.0,117520.0,1.1835755]
[1752256404992,0.00469828,117530.0,117520.0,0.73727041]
[1752256405207,0.00469828,117530.0,117520.0,1.1835755]
[1752256405760,0.00469828,117530.0,117520.0,1.1845755]
[1752256406128,0.00569828,117530.0,117520.0,1.1845755]
[1752256406338,0.00569828,117530.0,117520.0,0.73827041]
[1752256406635,0.00569828,117530.0,117520.0,1.1845755]
[1752256407820,0.00569828,117530.0,117520.0,0.73827041]
[1752256408029,0.00569828,117530.0,117520.0,1.1845755]
[1752256408442,0.00569828,117530.0,117520.0,0.73827041]
[1752256408647,0.00569828,117530.0,117520.0,1.1845755]
[1752256410166,0.00569828,117530.0,117520.0,0.54255993]
[1752256410365,0.00569828,117530.0,117520.0,0.72976187]
[1752256410655,0.00569828,117530.0,117520.0,0.73827077]
[1752256410837,0.00569828,117530.0,117520.0,0.74677959]
[1752256411008,0.00569828,117530.0,117520.0,0.75528791]
[1752256411207,0.00569828,117530.0,117520.0,1.201593]
[1752256411821,0.00569828,117530.0,117520.0,1.191593]
[1752256412015,0.0002,117540.0,117530.0,0.19569382]
[1752256412225,0.00034942,117540.0,117530.0,1.16782884]
[1752256413017,0.00034942,117540.0,117530.0,1.15932089]
[1752256413224,0.04326307,117540.0,117530.0,1.16782884]
[1752256413666,0.04326307,117540.0,117530.0,0.72152375]
[1752256414836,0.04326307,117540.0,117530.0,0.7290158]
[1752256415035,0.04326307,117540.0,117530.0,1.17532089]
[1752256415284,0.04426307,117540.0,117530.0,0.72050763]
[1752256415489,0.04426307,117540.0,117530.0,0.73752404]
[1752256415701,0.04426307,117540.0,117530.0,0.74603207]
[1752256415902,0.00534942,117540.0,117530.0,1.20084511]
[1752256416103,0.04426307,117540.0,117530.0,1.20084511]
[1752256417090,0.04426307,117540.0,117530.0,0.75454002]
[1752256417868,0.04426307,117540.0,117530.0,0.73752404]
[1752256418070,0.04426307,117540.0,117530.0,1.20084511]
[1752256418283,0.04426307,117540.0,117530.0,1.20084526]
[1752256419130,0.04426307,117540.0,117530.0,1.20084482]
[1752256419453,0.04426307,117540.0,117530.0,1.19233687]
[1752256419795,0.04426307,117540.0,117530.0,1.18382884]
[1752256420003,0.04426307,117540.0,117530.0,1.1838292]
[1752256420247,0.04426307,117540.0,117530.0,0.72901594]
[1752256420450,0.04426307,117540.0,117530.0,0.72901602]
[1752256420600,0.04426307,117540.0,117530.0,0.73752426]
[1752256420807,0.04426307,117540.0,117530.0,0.72901602]
[1752256421005,0.04426307,117540.0,117530.0,0.54182993]
[1752256421212,0.04426307,117540.0,117530.0,0.52570993]
[1752256422057,0.49254816,117540.0,117530.0,0.50400993]
[1752256422947,0.50708901,117540.0,117530.0,0.50400993]
[1752256423149,0.50708901,117540.0,117530.0,0.51970993]
[1752256423720,0.50708901,117540.0,117530.0,0.52283993]
[1752256424170,0.50708901,117540.0,117530.0,0.51970993]
[1752256424508,0.50708901,117540.0,117530.0,0.50400993]
[1752256426343,0.06078392,117540.0,117530.0,0.50400993]
[1752256426624,0.50708901,117540.0,117530.0,0.50400993]
[1752256427097,0.54478386,117540.0,117530.0,0.50400993]
[1752256427221,0.53088386,117540.0,117530.0,0.50400993]
[1752256427425,0.51558386,117540.0,117530.0,0.50400993]
[1752256429107,0.06927877,117540.0,117530.0,0.50400993]
[1752256429421,0.04426307,117540.0,117530.0,0.74511207]
[1752256430439,0.04426307,117540.0,117530.0,0.72809609]
[1752256430650,0.04624307,117540.0,117530.0,0.52470993]
[1752256430796,0.49254816,117540.0,117530.0,0.50400993]
[1752256430997,0.51558386,117540.0,117530.0,0.50400993]
[1752256431226,0.53198386,117540.0,117530.0,0.50400993]
[1752256431425,0.54588386,117540.0,117530.0,0.50400993]
[1752256432017,0.51558386,117540.0,117530.0,0.50400993]
[1752256432237,0.06927877,117540.0,117530.0,0.50400993]
[1752256432440,0.51558386,117540.0,117530.0,0.50400993]
[1752256432872,0.06078392,117540.0,117530.0,0.67417924]
[1752256433101,0.06078392,117540.0,117530.0,0.71978756]
[1752256433536,0.00534942,117540.0,117530.0,1.19161687]
[1752256433741,0.04426307,117540.0,117530.0,1.18310892]
[1752256433962,0.04426307,117540.0,117530.0,0.7282958]
[1752256434174,0.04426307,117540.0,117530.0,0.73680397]
[1752256434378,0.04426307,117540.0,117530.0,0.7282958]
[1752256434806,0.04426307,117540.0,117530.0,0.73680368]
[1752256435322,0.04426307,117540.0,117530.0,0.7282958]
[1752256435536,0.04426307,117540.0,117530.0,0.54110993]
[1752256435760,0.04426307,117540.0,117530.0,0.72829595]
[1752256435989,0.04426307,117540.0,117530.0,0.73680419]
[1752256436662,0.04426307,117540.0,117530.0,0.74531236]
[1752256437331,0.04426307,117540.0,117530.0,1.2001254]
[1752256437563,0.00534942,117540.0,117530.0,1.2001254]
[1752256438687,0.04426307,117540.0,117530.0,1.2001254]
[1752256439489,0.04426307,117540.0,117530.0,1.20012519]
[1752256439696,0.04426307,117540.0,117530.0,1.20012482]
[1752256439846,0.00534942,117540.0,117530.0,1.20012482]
[1752256440491,0.04426307,117540.0,117530.0,1.20012482]
[1752256440854,0.00534942,117540.0,117530.0,1.20012482]
[1752256441051,0.04426307,117540.0,117530.0,1.20012482]
[1752256441834,0.00534942,117540.0,117530.0,1.20012482]
[1752256442251,0.04426307,117540.0,117530.0,1.20012482]
[1752256444545,0.00534942,117540.0,117530.0,1.20012482]
[1752256444748,0.04426307,117540.0,117530.0,1.20012482]
[1752256446949,0.00534942,117540.0,117530.0,1.20012482]
[1752256447101,0.04426307,117540.0,117530.0,1.20012482]
[1752256448867,0.00534942,117540.0,117530.0,1.20012482]
[1752256449064,0.04426307,117540.0,117530.0,1.20012482]
[1752256450443,0.04426307,117540.0,117530.0,0.54961839]
[1752256450651,0.04426307,117540.0,117530.0,0.72829609]
[1752256450863,0.04426307,117540.0,117530.0,0.54110993]
[1752256451041,0.49254816,117540.0,117530.0,0.50400993]
[1752256451907,0.00534942,117540.0,117530.0,1.18160884]
[1752256452118,0.04426307,117540.0,117530.0,1.18160892]
[1752256452323,0.04426307,117540.0,117530.0,1.19011687]
[1752256455051,0.04426307,117540.0,117530.0,0.70977924]
[1752256455256,0.49056816,117540.0,117530.0,0.53960993]
[1752256455458,0.49254816,117540.0,117530.0,0.52238993]
[1752256455683,0.45363451,117540.0,117530.0,0.52238993]
[1752256455892,0.49254816,117540.0,117530.0,0.52238993]
[1752256456037,0.04624307,117540.0,117530.0,0.50698993]
[1752256456253,0.04624307,117540.0,117530.0,0.70106756]
[1752256456513,0.04624307,117540.0,117530.0,0.52238993]
[1752256457294,0.04624307,117540.0,117530.0,0.53089839]
[1752256457610,0.04624307,117540.0,117530.0,0.71154609]
[1752256458016,0.04624307,117540.0,117530.0,0.72005441]
[1752256458339,0.04607291,117540.0,117530.0,0.71154609]
[1752256458493,0.00715926,117540.0,117530.0,0.72005441]
[1752256458676,0.04607291,117540.0,117530.0,0.7030377]
[1752256458861,0.04607291,117540.0,117530.0,0.69452924]
[1752256459061,0.04607291,117540.0,117530.0,0.52435993]
[1752256459261,0.04607291,117540.0,117530.0,0.70303763]
[1752256459522,0.04607291,117540.0,117530.0,0.71154595]
[1752256460077,0.492378,117540.0,117530.0,0.50400993]
[1752256460980,0.04607291,117540.0,117530.0,0.51251839]
[1752256461189,0.04607291,117540.0,117530.0,0.50400993]
[1752256463568,0.492378,117540.0,117530.0,0.50400993]
[1752256463989,0.5154137,117540.0,117530.0,0.50400993]
[1752256465663,0.06910861,117540.0,117530.0,0.50400993]
[1752256467116,0.06910861,117540.0,117530.0,0.52040993]
[1752256467318,0.06910861,117540.0,117530.0,0.52348993]